fUSD/lending_fUSD_20260217
["ID","MTS","AMOUNT","RATE_DAILY","PERIOD"]
[405857087,1771365050788,-2378.0,0.00016767,2]
[405857088,1771365050798,-150.0,0.000168,2]
[405857089,1771365050808,-2378.0,0.00016822,2]
[405857090,1771365050818,-420.62043768,0.0001683,2]
[405857091,1771365050828,-2378.0,0.00016876,2]
[405857092,1771365050838,-2300.0,0.000169,6]
[405857093,1771365050848,-2378.0,0.00016931,2]
[405857094,1771365050857,-166.11141928,0.00016962,2]
[405857095,1771365050867,-2378.0,0.00016986,2]
[405857096,1771365050877,-300.0,0.00017,2]
[405857097,1771365050886,-2000.0,0.00017,2]
[405857098,1771365050896,-1000.0,0.00017026,2]
[405857099,1771365050906,-2378.0,0.00017041,2]
[405857100,1771365050916,-1000.0,0.0001705,2]
[405857101,1771365050927,-1000.0,0.00017072,2]
[405857102,1771365050937,-1454.86007664,0.00017085,2]
[405857103,1771365050946,-1000.0,0.00017087,2]
[405857104,1771365050956,-500.0,0.00017095,2]
[405857105,1771365050966,-500.0,0.00017095,2]
[405857106,1771365050976,-500.0,0.00017095,2]
[405857107,1771365050985,-500.0,0.00017095,2]
[405857108,1771365050995,-500.0,0.00017095,2]
[405857109,1771365051005,-500.0,0.00017095,2]
[405857110,1771365051014,-431.2849758,0.00017095,2]
[405857111,1771365051024,-500.0,0.00017095,2]
[405857112,1771365051034,-500.0,0.00017095,2]
[405857113,1771365051044,-500.0,0.00017095,2]
[405857114,1771365051054,-500.0,0.00017095,2]
[405857115,1771365051064,-250.0,0.00017095,2]
[405857116,1771365051075,-500.0,0.00017095,2]
[405857117,1771365051085,-277.35679052,0.00017095,2]
[405857118,1771365051095,-250.0,0.00017095,2]
[405857119,1771365051106,-500.0,0.00017095,2]
[405857120,1771365051116,-250.0,0.00017095,2]
[405857121,1771365051125,-500.0,0.00017095,2]
[405857122,1771365051135,-250.0,0.00017095,2]
[405857123,1771365051145,-151.0,0.00017095,2]
[405857124,1771365051155,-156.587,0.00017095,2]
[405857125,1771365051165,-250.0,0.00017095,2]
[405857126,1771365051175,-162.380719,0.00017095,2]
[405857127,1771365051184,-159.19814613,0.00017095,2]
[405857128,1771365051194,-200.0,0.00017095,2]
[405857129,1771365051205,-151.0,0.00017095,2]
[405857130,1771365051216,-250.0,0.00017095,2]
[405857131,1771365051226,-500.0,0.00017095,2]
[405857132,1771365051236,-250.0,0.00017095,2]
[405857133,1771365051245,-250.0,0.00017095,2]
[405857134,1771365051255,-500.0,0.00017095,2]
[405857135,1771365051265,-250.0,0.00017095,2]
[405857136,1771365051276,-500.0,0.00017095,2]
[405857137,1771365051285,-250.0,0.00017095,2]
[405857138,1771365051296,-250.0,0.00017095,2]
[405857139,1771365051307,-500.0,0.00017095,2]
[405857140,1771365051317,-500.0,0.00017095,2]
[405857141,1771365051327,-184.99591854,0.00017095,2]
[405857142,1771365051337,-500.0,0.00017095,2]
[405857143,1771365051347,-500.0,0.00017095,2]
[405857144,1771365051360,-250.0,0.00017095,2]
[405857145,1771365051369,-250.0,0.00017095,2]
[405857146,1771365051379,-250.0,0.00017095,2]
[405857147,1771365051388,-250.0,0.00017095,2]
[405857148,1771365051399,-250.0,0.00017095,2]
[405857149,1771365051408,-174.61919141,0.00017095,2]
[405857150,1771365051418,-250.0,0.00017095,2]
[405857151,1771365051428,-250.0,0.00017095,2]
[405857152,1771365051438,-250.0,0.00017095,2]
[405857153,1771365051447,-3000.0,0.00017095,2]
[405857154,1771365051457,-250.0,0.00017095,2]
[405857155,1771365051466,-3000.0,0.00017095,2]
[405857156,1771365051476,-250.0,0.00017095,2]
[405857157,1771365051487,-250.0,0.00017095,2]
[405857158,1771365051496,-3000.0,0.00017095,2]
[405857159,1771365051506,-721.12765535,0.00017095,2]
[405857160,1771365051515,-250.0,0.00017095,2]
[405857161,1771365051525,-250.0,0.00017095,2]
[405857162,1771365051534,-3000.0,0.00017095,2]
[405857163,1771365051544,-250.0,0.00017095,2]
[405857164,1771365051553,-3000.0,0.00017095,2]
[405857165,1771365051562,-250.0,0.00017095,2]
[405857166,1771365051571,-3000.0,0.00017095,2]
[405857167,1771365051581,-250.0,0.00017095,2]
[405857168,1771365051591,-3000.0,0.00017095,2]
[405857169,1771365051600,-2570.81608438,0.00017095,2]
[405857170,1771365051610,-250.0,0.00017095,2]
[405857171,1771365051620,-693.3919763,0.00017095,2]
[405857172,1771365051629,-250.0,0.00017095,2]
[405857173,1771365051639,-250.0,0.00017095,2]
[405857174,1771365051648,-250.0,0.00017095,2]
[405857175,1771365051658,-250.0,0.00017095,2]
[405857176,1771365051669,-250.0,0.00017095,2]
[405857177,1771365051682,-250.0,0.00017095,2]
[405857178,1771365051692,-250.0,0.00017095,2]
[405857179,1771365051702,-250.0,0.00017095,2]
[405857180,1771365051712,-250.0,0.00017095,2]
[405857181,1771365051723,-250.0,0.00017095,2]
[405857182,1771365051734,-250.0,0.00017095,2]
[405857183,1771365051744,-250.0,0.00017095,2]
[405857184,1771365051754,-743.50770149,0.00017095,2]
[405857185,1771365051764,-250.0,0.00017095,2]
[405857186,1771365051773,-250.0,0.00017095,2]
[405857187,1771365051783,-250.0,0.00017095,2]
[405857188,1771365051793,-250.0,0.00017095,2]
[405857189,1771365051803,-250.0,0.00017095,2]
[405857190,1771365051814,-250.0,0.00017095,2]
[405857191,1771365051823,-250.0,0.00017095,2]
[405857192,1771365051833,-250.0,0.00017095,2]
[405857193,1771365051842,-299.40346672,0.00017095,2]
[405857194,1771365051852,-250.0,0.00017095,2]
[405857195,1771365051862,-250.0,0.00017095,2]
[405857196,1771365051872,-250.0,0.00017095,2]
[405857197,1771365051882,-250.0,0.00017095,2]
[405857198,1771365051891,-174.5920753,0.00017095,2]
[405857199,1771365051900,-151.0,0.00017095,2]
[405857200,1771365051910,-250.0,0.00017095,2]
[405857201,1771365051919,-151.0,0.00017095,2]
[405857202,1771365051929,-250.0,0.00017095,2]
[405857203,1771365051938,-250.0,0.00017095,2]
[405857204,1771365051948,-151.0,0.00017095,2]
[405857205,1771365051958,-151.0,0.00017095,2]
[405857206,1771365051968,-250.0,0.00017095,2]
[405857207,1771365051977,-151.0,0.00017095,2]
[405857208,1771365051987,-250.0,0.00017095,2]
[405857209,1771365051997,-151.0,0.00017095,2]
[405857210,1771365052007,-250.0,0.00017095,2]
[405857211,1771365052017,-151.0,0.00017095,2]
[405857212,1771365052027,-250.0,0.00017095,2]
[405857213,1771365052036,-151.0,0.00017095,2]
[405857214,1771365052046,-151.0,0.00017095,2]
[405857215,1771365052055,-151.0,0.00017095,2]
[405857216,1771365052065,-151.0,0.00017095,2]
[405857217,1771365052075,-2378.0,0.00017096,2]
[405857218,1771365052084,-150.0,0.000171,2]
[405857219,1771365052094,-196837.22809,0.000171,2]
[405857220,1771365052103,-820.0,0.000171,2]
[405857221,1771365052112,-150.0,0.00017144,2]
[405857222,1771365052122,-1000.0,0.00017144,2]
[405857223,1771365052131,-151.0,0.0001715,2]
[405857224,1771365052140,-719.04747942,0.0001715,2]
[405857225,1771365052152,-2378.0,0.0001715,2]
[405857226,1771365052161,-1740.67806815,0.0001716,2]
[405857227,1771365052172,-151.0,0.00017205,2]
[405857228,1771365052182,-745.65223616,0.00017205,2]
[405857229,1771365052192,-2378.0,0.00017205,2]
[405857230,1771365052202,-150.0,0.00017207,2]
[405857231,1771365052212,-150.0,0.00017222,2]
[405857232,1771365052222,-150.0,0.00017233,2]
[405857233,1771365052232,-1000.0,0.0001724,2]
[405857234,1771365052241,-150.0,0.00017256,2]
[405857235,1771365052251,-151.0,0.0001726,2]
[405857236,1771365052262,-773.2413689,0.0001726,2]
[405857237,1771365052271,-2378.0,0.0001726,2]
[405857238,1771365052281,-1000.0,0.0001726,2]
[405857239,1771365052291,-1000.0,0.00017307,2]
[405857240,1771365052406,-151.0,0.00017315,2]
[405857241,1771365052415,-801.85129955,0.00017315,2]
[405857242,1771365052426,-2378.0,0.00017315,2]
[405857243,1771365052435,-1000.0,0.00017326,2]
[405857244,1771365052444,-160.0,0.0001736,2]
[405857245,1771365052454,-1000.0,0.00017368,2]
[405857246,1771365052463,-2378.0,0.0001737,2]
[405857247,1771365052472,-151.0,0.0001737,2]
[405857248,1771365052482,-831.51979763,0.0001737,2]
[405857249,1771365052491,-12649.0,0.0001737,2]
[405857250,1771365052501,-1000.0,0.00017387,2]
[405857251,1771365052510,-150.0,0.000174,2]
[405857252,1771365052520,-1000.0,0.00017411,2]
[405857253,1771365052530,-162.702,0.00017413,2]
[405857254,1771365052540,-1338.0,0.00017413,2]
[405857255,1771365052550,-3540.659,0.00017413,2]
[405857256,1771365052559,-1164.0,0.00017413,2]
[405857257,1771365052569,-619.543,0.00017413,2]
[405857258,1771365052578,-150.248,0.00017413,2]
[405857259,1771365052588,-418.979,0.00017413,2]
[405857260,1771365052598,-5973.0,0.00017413,2]
[405857261,1771365052608,-1000.0,0.00017415,2]
[405857262,1771365052617,-150.0,0.00017421,2]
[405857263,1771365052627,-2378.0,0.00017424,2]
[405857264,1771365052636,-151.0,0.00017425,2]
[405857265,1771365052646,-862.28603014,0.00017425,2]
[405857266,1771365052656,-1000.0,0.00017426,2]
[405857267,1771365052667,-1000.0,0.00017428,2]
[405857268,1771365052679,-1000.0,0.00017436,2]
[405857269,1771365052689,-2000.0,0.00017452,7]
[405857270,1771365052698,-1000.0,0.00017472,2]
[405857271,1771365052710,-2378.0,0.00017479,2]
[405857272,1771365052720,-151.0,0.0001748,2]
[405857273,1771365052729,-894.19061326,0.0001748,2]
[405857274,1771365052740,-808.0,0.0001748,2]
[405857275,1771365052749,-150.0,0.00017497,2]
[405857276,1771365052758,-808.0,0.00017508,2]
[405857277,1771365052768,-2378.0,0.00017534,2]
[405857278,1771365052777,-1000.0,0.00017534,2]
[405857279,1771365052787,-151.0,0.00017535,2]
[405857280,1771365052796,-927.27566595,0.00017535,2]
[405857281,1771365052805,-1000.0,0.00017537,2]
[405857282,1771365052815,-1000.0,0.00017541,2]
[405857283,1771365052824,-1000.0,0.00017555,2]
[405857284,1771365052833,-3734.0,0.00017567,2]
[405857285,1771365052843,-350.0,0.00017568,2]
[405857286,1771365052852,-1000.0,0.0001757,2]
[405857287,1771365052861,-808.0,0.00017575,2]
[405857288,1771365052870,-851.03293945,0.00017582,2]
[405857289,1771365052880,-150.0,0.00017585,2]
[405857290,1771365052889,-2378.0,0.00017589,2]
[405857291,1771365052898,-151.0,0.0001759,2]
[405857292,1771365052907,-961.58486559,0.0001759,2]
[405857293,1771365052916,-2300.0,0.000176,6]
[405857294,1771365052925,-1000.0,0.00017619,2]
[405857295,1771365052934,-1000.0,0.00017621,2]
[405857296,1771365052943,-1000.0,0.00017623,2]
[405857297,1771365052953,-150.0,0.00017636,2]
[405857298,1771365052962,-10846.14923654,0.0001764,2]
[405857299,1771365052972,-287.61899177,0.00017643,2]
[405857300,1771365052981,-200.0,0.00017643,2]
[405857301,1771365052990,-181.08010149,0.00017643,2]
[405857302,1771365052998,-771.01748645,0.00017643,2]
[405857303,1771365053008,-2378.0,0.00017643,2]
[405857304,1771365053017,-1000.0,0.00017644,2]
[405857305,1771365053026,-404.0,0.00017644,2]
[405857306,1771365053036,-151.0,0.00017645,2]
[405857307,1771365053045,-997.16350561,0.00017645,2]
[405857308,1771365053054,-1000.0,0.00017646,2]
[405857309,1771365053064,-1000.0,0.0001765,2]
[405857310,1771365053073,-1000.0,0.00017653,2]
[405857311,1771365053083,-150.0,0.00017658,2]
[405857312,1771365053092,-808.0,0.0001766,2]
[405857313,1771365053101,-150.0,0.00017665,2]
[405857314,1771365053110,-1000.0,0.00017674,2]
[405857315,1771365053120,-1000.0,0.00017683,2]
[405857316,1771365053129,-404.0,0.00017697,2]
[405857317,1771365053138,-2390.56309185,0.00017698,2]
[405857318,1771365053147,-151.0,0.000177,2]
[405857319,1771365053156,-150.0,0.000177,2]
[405857320,1771365053166,-2300.0,0.000177,6]
[405857321,1771365053175,-808.0,0.00017707,2]
[405857322,1771365053184,-1000.0,0.00017715,2]
[405857323,1771365053193,-1000.0,0.0001772,2]
[405857324,1771365053203,-1000.0,0.00017724,2]
[405857325,1771365053212,-1000.0,0.00017726,2]
[405857326,1771365053221,-500.0,0.00017726,7]
[405857327,1771365053230,-2004.41635969,0.0001773,2]
[405857328,1771365053240,-150.0,0.00017734,2]
[405857329,1771365053249,-1000.0,0.00017753,2]
[405857330,1771365053259,-151.0,0.00017755,2]
[405857331,1771365053268,-1000.0,0.00017767,2]
[405857332,1771365053278,-150.0,0.00017783,2]
[405857333,1771365053288,-1000.0,0.00017796,2]
[405857334,1771365053298,-2300.0,0.000178,6]
[405857335,1771365053307,-808.0,0.00017805,2]
[405857336,1771365053316,-444.64,0.00017808,2]
[405857337,1771365053326,-1000.0,0.00017808,2]
[405857338,1771365053335,-800.0,0.00017808,2]
[405857339,1771365053344,-250.0,0.00017808,20]
[405857340,1771365053353,-250.0,0.00017808,20]
[405857341,1771365053363,-250.0,0.00017808,20]
[405857342,1771365053373,-250.0,0.00017808,20]
[405857343,1771365053383,-250.0,0.00017808,20]
[405857344,1771365053393,-250.0,0.00017808,20]
[405857345,1771365053402,-250.0,0.00017808,20]
[405857346,1771365053411,-250.0,0.00017808,20]
[405857347,1771365053421,-250.0,0.00017808,20]
[405857348,1771365053430,-250.0,0.00017808,20]
[405857349,1771365053439,-250.0,0.00017808,20]
[405857350,1771365053449,-250.0,0.00017808,20]
[405857351,1771365053458,-250.0,0.00017808,20]
[405857352,1771365053468,-250.0,0.00017808,20]
[405857353,1771365053478,-250.0,0.00017808,20]
[405857354,1771365053487,-250.0,0.00017808,20]
[405857355,1771365053497,-250.0,0.00017808,20]
[405857356,1771365053506,-151.0,0.0001781,2]
[405857357,1771365053516,-2000.0,0.0001782,2]
[405857358,1771365053525,-2000.0,0.0001782,2]
[405857359,1771365053535,-2000.0,0.0001782,2]
[405857360,1771365053545,-2000.0,0.0001782,2]
[405857361,1771365053556,-1000.0,0.00017824,2]
[405857362,1771365053566,-1000.0,0.00017843,2]
[405857363,1771365053576,-1000.0,0.00017853,2]
[405857364,1771365053586,-200.0,0.00017855,2]
[405857365,1771365053596,-500.0,0.00017856,2]
[405857366,1771365053606,-200.0,0.00017856,2]
[405857367,1771365053617,-200.0,0.00017856,2]
[405857368,1771365053627,-1000.0,0.00017857,2]
[405857369,1771365053638,-1000.0,0.00017861,2]
[405857370,1771365053647,-151.0,0.00017865,2]
[405857371,1771365053658,-1000.0,0.00017866,2]
[405857372,1771365053668,-943.7211497,0.00017872,2]
[405857373,1771365053682,-1000.0,0.00017876,2]
[405857374,1771365053691,-150.0,0.00017882,2]
[405857375,1771365053702,-1000.0,0.00017889,2]
[405857376,1771365053711,-150.0,0.00017893,2]
[405857377,1771365053723,-1000.0,0.00017896,2]
[405857378,1771365053733,-1000.0,0.00017896,2]
[405857379,1771365053743,-1000.0,0.00017898,2]
[405857380,1771365053754,-1000.0,0.00017899,2]
[405857381,1771365053764,-150.0,0.000179,2]
[405857382,1771365053773,-150.0,0.000179,2]
[405857383,1771365053783,-150.0,0.000179,2]
[405857384,1771365053793,-150.0,0.000179,2]
[405857385,1771365053802,-150.0,0.000179,2]
[405857386,1771365053812,-25000.0,0.000179,3]
[405857387,1771365053821,-150.0,0.000179,2]
[405857388,1771365053831,-2877.0,0.000179,6]
[405857389,1771365053842,-1873.72265739,0.000179,2]
[405857390,1771365053851,-1873.72265737,0.000179,2]
[405857391,1771365053861,-1873.72265737,0.000179,2]
[405857392,1771365053871,-1873.72265737,0.000179,2]
[405857393,1771365053881,-1873.72265737,0.000179,2]
[405857394,1771365053891,-1873.72265737,0.000179,2]
[405857395,1771365053900,-1873.72265737,0.000179,2]
[405857396,1771365053910,-1873.72265737,0.000179,2]
[405857397,1771365053920,-1873.72265737,0.000179,2]
[405857398,1771365053929,-1873.72265737,0.000179,2]
[405857399,1771365053939,-1873.72265737,0.000179,2]
[405857400,1771365053950,-1873.72265737,0.000179,2]
[405857401,1771365053960,-1873.72265737,0.000179,2]
[405857402,1771365053971,-1873.72265737,0.000179,2]
[405857403,1771365053981,-5019.02576734,0.000179,2]
[405857404,1771365053990,-1873.72265737,0.000179,2]
[405857405,1771365054000,-150.0,0.000179,2]
[405857406,1771365054016,-1873.72265737,0.000179,2]
[405857407,1771365054028,-1873.72265737,0.000179,2]
[405857408,1771365054039,-1873.72265737,0.000179,2]
[405857409,1771365054050,-1873.72265737,0.000179,2]
[405857410,1771365054060,-1873.72265737,0.000179,2]
[405857411,1771365054071,-11813.90255413,0.000179,2]
[405857412,1771365054082,-1000.0,0.00017924,2]
[405857413,1771365054092,-1000.0,0.00017928,2]
[405857414,1771365054103,-150.0,0.00017929,2]
[405857415,1771365054113,-150.0,0.00017932,2]
[405857416,1771365054124,-1000.0,0.00017936,2]
[405857417,1771365054135,-150.0,0.00017946,2]
[405857418,1771365054146,-1000.0,0.00017952,2]
[405857419,1771365054157,-1000.0,0.00017956,2]
[405857420,1771365054168,-1000.0,0.00017967,2]
[405857421,1771365054179,-4380.9678672,0.00017972,2]
[405857422,1771365054189,-213969.7776569,0.00017972,2]
[405857423,1771365054200,-160477.3332426,0.00017972,2]
[405857424,1771365054210,-13142.9036015,0.00017972,2]
[405857425,1771365054220,-361073.999796,0.00017972,2]
[405857426,1771365054231,-151.0,0.00017972,2]
[405857427,1771365054242,-151.0,0.00017972,2]
[405857428,1771365054252,-151.0,0.00017972,2]
[405857429,1771365054269,-151.0,0.00017972,2]
[405857430,1771365054280,-151.0,0.00017972,2]
[405857431,1771365054291,-242.009051,0.00017972,2]
[405857432,1771365054301,-242.009051,0.00017972,2]
[405857433,1771365054312,-242.009051,0.00017972,2]
[405857434,1771365054322,-242.009051,0.00017972,2]
[405857435,1771365054333,-20499.10730416,0.00017972,4]
[405857436,1771365054343,-92123.30359276,0.00017972,4]
[405857437,1771365054354,-1000.0,0.00017985,2]
[405857438,1771365054364,-1000.0,0.0001799,2]
[405857439,1771365054375,-152.0,0.00017991,2]
[405857440,1771365054385,-1508.0,0.00017991,2]
[405857441,1771365054395,-152.0,0.00017991,2]
[405857442,1771365054405,-1508.0,0.00017991,2]
[405857443,1771365054415,-152.0,0.00017991,2]
[405857444,1771365054431,-1508.0,0.00017991,2]
[405857445,1771365054442,-152.0,0.00017991,2]
[405857446,1771365054452,-1508.0,0.00017991,2]
[405857447,1771365054463,-152.0,0.00017991,2]
[405857448,1771365054474,-1508.0,0.00017991,2]
[405857449,1771365054485,-152.0,0.00017991,2]
[405857450,1771365054496,-1508.0,0.00017991,2]
[405857451,1771365054507,-153.0,0.00017991,2]
[405857452,1771365054518,-1508.0,0.00017991,2]
[405857453,1771365054529,-152.0,0.00017991,2]
[405857454,1771365054539,-153.0,0.00017991,2]
[405857455,1771365054551,-158.65284712,0.00017991,2]
[405857456,1771365054561,-152.0,0.00017991,2]
[405857457,1771365054572,-1508.0,0.00017991,2]
[405857458,1771365054582,-153.0,0.00017991,2]
[405857459,1771365054592,-1508.0,0.00017991,2]
[405857460,1771365054603,-152.0,0.00017991,2]
[405857461,1771365054613,-153.0,0.00017991,2]
[405857462,1771365054623,-152.0,0.00017991,2]
[405857463,1771365054634,-1508.0,0.00017991,2]
[405857464,1771365054645,-152.0,0.00017991,2]
[405857465,1771365054655,-153.0,0.00017991,2]
[405857466,1771365054666,-152.0,0.00017991,2]
[405857467,1771365054680,-1508.0,0.00017991,2]
[405857468,1771365054690,-152.0,0.00017991,2]
[405857469,1771365054701,-153.0,0.00017991,2]
[405857470,1771365054712,-152.0,0.00017991,2]
[405857471,1771365054722,-1508.0,0.00017991,2]
[405857472,1771365054733,-153.0,0.00017991,2]
[405857473,1771365054744,-152.0,0.00017991,2]
[405857474,1771365054755,-153.0,0.00017991,2]
[405857475,1771365054765,-153.0,0.00017991,2]
[405857476,1771365054775,-152.0,0.00017991,2]
[405857477,1771365054790,-153.0,0.00017991,2]
[405857478,1771365054802,-152.0,0.00017991,2]
[405857479,1771365054812,-153.0,0.00017991,2]
[405857480,1771365054823,-153.0,0.00017991,2]
[405857481,1771365054834,-152.0,0.00017991,2]
[405857482,1771365054846,-153.0,0.00017991,2]
[405857483,1771365054856,-152.0,0.00017991,2]
[405857484,1771365054867,-153.0,0.00017991,2]
[405857485,1771365054878,-153.0,0.00017991,2]
[405857486,1771365054888,-153.0,0.00017991,2]
[405857487,1771365054899,-153.0,0.00017991,2]
[405857488,1771365054909,-153.0,0.00017991,2]
[405857489,1771365054920,-153.0,0.00017991,2]
[405857490,1771365054931,-311.844149,0.00017991,2]
[405857491,1771365054942,-311.844149,0.00017991,2]
[405857492,1771365054953,-311.844149,0.00017991,2]
[405857493,1771365054964,-311.844149,0.00017991,2]
[405857494,1771365054975,-151.0,0.00017997,2]
[405857495,1771365054986,-201.49144462,0.00017999,2]
[405857496,1771365054997,-408.02499837,0.00017999,2]
[405857497,1771365055008,-300.0,0.00017999,2]
[405857498,1771365055019,-210.83497848,0.00017999,2]
[405857499,1771365055030,-312.69655239,0.00017999,2]
[405857500,1771365055041,-300.0,0.00017999,2]
[405857501,1771365055051,-666.0,0.00017999,2]
[405857502,1771365055062,-300.0,0.00017999,2]
[405857503,1771365055073,-666.0,0.00017999,2]
[405857504,1771365055084,-300.0,0.00017999,2]
[405857505,1771365055094,-300.0,0.00017999,2]
[405857506,1771365055105,-666.0,0.00017999,2]
[405857507,1771365055116,-243.22753519,0.00017999,2]
[405857508,1771365055127,-150.0,0.00018,2]
[405857509,1771365055137,-1000.0,0.00018,2]
[405857510,1771365055151,-389.83552787,0.00018,2]
[405857511,1771365055162,-3383681.07319222,0.00018,2]
[405857512,1771365056161,-372.80333372,0.00018,2]
[405857513,1771365056173,-3561.99998,0.00018,2]
[405857514,1771365056184,-127920.93939335,0.00018,2]
[405857515,1771365056196,-327.84001672,0.00018,2]
[405857516,1771365056207,-2073.02082785,0.00018,2]
[405857517,1771365056219,-613.24244351,0.00018,2]
[405857518,1771365056231,-149706.63446222,0.00018,2]
[405857519,1771365056242,-271.12978087,0.00018,2]
[405857520,1771365056344,-186.11515271,0.00013873,2]
[405857521,1771365056353,-1105.90484729,0.00017413,2]
[405857522,1771365056364,-214.09515271,0.00017413,2]
[405857523,1771365056374,-2460.828,0.00017413,2]
[405857524,1771365056383,-3304.07684729,0.00018,2]
[405857525,1771365056398,-326.36,0.00018,2]
[405857526,1771365056547,-182.28581928,9.013e-05,2]
[405857527,1771365056557,-456.30417072,0.00018,2]
[405857528,1771365056568,-1282.35999999,0.00018,2]
[405857529,1771365056579,-863.33949,0.00018,2]
[405857530,1771365056591,-1708.75,0.00018,2]
[405857531,1771365056603,-864.58088065,0.00018,2]
[405857532,1771365056614,-1129.76624814,0.00018,2]
[405857533,1771365056630,-8521.85849804,0.00018,2]
[405857534,1771365056648,-372.62648288,0.00018,2]
[405857535,1771365154215,1500.0,0.00018,30]
[405857683,1771366231811,-8027.97513753,8.4e-05,2]
[405857694,1771366237672,-61.4981156,8.4e-05,2]
[405857695,1771366237683,-6014.76861728,8.4e-05,2]
[405857696,1771366237695,-485.4300017,8.4e-05,2]
[405857697,1771366237707,-311.20749528,8.4e-05,2]
[405857698,1771366237735,-6000.89731925,8.4e-05,2]
[405857699,1771366237748,-2224.17408572,8.4e-05,2]
[405857700,1771366237795,-1594.34128727,8.4e-05,2]
[405857701,1771366237808,-4691.10986852,8.4e-05,2]
[405857702,1771366237818,-14109.68043284,8.4e-05,2]
[405857703,1771366237854,-437.70943335,8.4e-05,2]
[405857887,1771366239966,-13315.76651978,8.4e-05,2]
[405857889,1771366239976,-27863.15638597,8.4e-05,2]
[405857891,1771366239986,-16028.94650631,8.4e-05,2]
[405857893,1771366240000,-27863.15638597,8.4e-05,2]
[405857895,1771366240010,-166.66,8.437e-05,2]
[405857897,1771366240020,-300.0,8.513e-05,2]
[405857899,1771366240031,-150.0,8.514e-05,2]
[405857901,1771366240041,-3500000.0,8.515e-05,2]
[405857903,1771366240052,-2500.0,8.515e-05,2]
[405857905,1771366240061,-6737.6189,8.515e-05,2]
[405857907,1771366240073,-1758.79423204,8.515e-05,2]
[405857909,1771366240083,-182.28581927,8.515e-05,2]
[405857911,1771366240093,-7875.9350361,8.515e-05,2]
[405857913,1771366240103,-4011.112,8.54e-05,2]
[405857915,1771366240112,-387.337,8.54e-05,2]
[405857917,1771366240122,-600.0,8.6e-05,3]
[405857919,1771366240132,-300.0,8.7e-05,2]
[405857921,1771366240142,-150.0,8.7e-05,7]
[405857923,1771366240151,-1200.0,8.7e-05,3]
[405857925,1771366240162,-150.99,8.713e-05,2]
[405857928,1771366240171,-999.99,8.714e-05,2]
[405857930,1771366240181,-299.99,8.714e-05,2]
[405857931,1771366240191,-9999.99,8.714e-05,2]
[405857934,1771366240206,-9999.99,8.714e-05,2]
[405857936,1771366240215,-150.99,8.714e-05,2]
[405857938,1771366240225,-994.9,8.714e-05,2]
[405857940,1771366240235,-9999.99,8.714e-05,2]
[405857942,1771366240245,-346.58,8.714e-05,2]
[405857944,1771366240254,-9999.99,8.714e-05,2]
[405857946,1771366240264,-10000.0,8.715e-05,2]
[405857948,1771366240273,-166.66,8.716e-05,2]
[405857951,1771366240284,-560.0,8.722e-05,2]
[405857953,1771366240294,-1448.0,8.76e-05,2]
[405857955,1771366240303,-304.0,8.76e-05,2]
[405857957,1771366240313,-1374.0,8.778e-05,2]
[405857959,1771366240323,-418.0,8.778e-05,2]
[405857961,1771366240333,-153.0,8.795e-05,2]
[405857963,1771366240343,-1800.0,8.8e-05,3]
[405857965,1771366240353,-239.0,8.813e-05,2]
[405857967,1771366240363,-1000.0,8.813e-05,2]